[Event "Early-Titled-Tuesday-Blitz-October-03-2023"]
[Site "Chess.com"]
[Date "2023.10.03"]
[Round "11"]
[White "JoakimVonAnd"]
[Black "Doomfist26"]
[Result "1/2-1/2"]
[WhiteElo "2728"]
[BlackElo "2602"]
[TimeControl "180+1"]
[EndTime "10:07:18 PDT"]
[Termination "Game drawn by repetition"]

1. Nf3 {[%clk 0:03:00.9]} 1... Nf6 {[%clk 0:02:53.8]} 2. g3 {[%clk 0:03:01.4]}
2... d5 {[%clk 0:02:52.5]} 3. Bg2 {[%clk 0:03:01.7]} 3... Nc6 {[%clk 0:02:53]}
4. d4 {[%clk 0:03:00]} 4... b5 {[%clk 0:02:53.2]} 5. O-O {[%clk 0:02:59.7]} 5...
e6 {[%clk 0:02:53.7]} 6. a4 {[%clk 0:02:59.4]} 6... b4 {[%clk 0:02:53.2]} 7. c4
{[%clk 0:02:59.9]} 7... bxc3 {[%clk 0:02:53]} 8. Nxc3 {[%clk 0:03:00.4]} 8...
Be7 {[%clk 0:02:48.9]} 9. Bf4 {[%clk 0:03:00.2]} 9... a6 {[%clk 0:02:45.7]} 10.
Rc1 {[%clk 0:02:59.7]} 10... Bd7 {[%clk 0:02:33.8]} 11. Ne5 {[%clk 0:02:39.8]}
11... Na5 {[%clk 0:02:05.1]} 12. e4 {[%clk 0:02:30.9]} 12... c6 {[%clk
0:01:59.2]} 13. Na2 {[%clk 0:02:21.4]} 13... Nxe4 {[%clk 0:01:35.1]} 14. b4
{[%clk 0:02:21.2]} 14... Nb7 {[%clk 0:01:34.1]} 15. Nxc6 {[%clk 0:02:20.4]}
15... Bxc6 {[%clk 0:01:32.5]} 16. Rxc6 {[%clk 0:02:21.3]} 16... O-O {[%clk
0:01:32.4]} 17. Qd3 {[%clk 0:02:13.6]} 17... Ned6 {[%clk 0:01:23.8]} 18. Rxa6
{[%clk 0:02:08.3]} 18... Nc4 {[%clk 0:01:09.7]} 19. Rxa8 {[%clk 0:02:04.6]}
19... Qxa8 {[%clk 0:01:10.6]} 20. a5 {[%clk 0:02:03.2]} 20... Qa7 {[%clk
0:01:00.1]} 21. Rb1 {[%clk 0:02:00.1]} 21... Bf6 {[%clk 0:00:57.5]} 22. Nc3
{[%clk 0:01:49.8]} 22... Qxd4 {[%clk 0:00:48.9]} 23. Qxd4 {[%clk 0:01:46.6]}
23... Bxd4 {[%clk 0:00:49.4]} 24. Nb5 {[%clk 0:01:47.5]} 24... Bf6 {[%clk
0:00:38.2]} 25. a6 {[%clk 0:01:45]} 25... Nd8 {[%clk 0:00:37.9]} 26. a7 {[%clk
0:01:39.7]} 26... Nc6 {[%clk 0:00:37.3]} 27. Bb8 {[%clk 0:01:39.8]} 27... Nb6
{[%clk 0:00:35.8]} 28. Bc7 {[%clk 0:01:34.6]} 28... Na8 {[%clk 0:00:35.1]} 29.
Bd6 {[%clk 0:01:35]} 29... Rd8 {[%clk 0:00:34.4]} 30. Rc1 {[%clk 0:01:34.9]}
30... Nxa7 {[%clk 0:00:31.6]} 31. Nxa7 {[%clk 0:01:12.9]} 31... Rxd6 {[%clk
0:00:31.8]} 32. b5 {[%clk 0:01:13.6]} 32... Nb6 {[%clk 0:00:32.2]} 33. Rc6
{[%clk 0:01:13.3]} 33... Rxc6 {[%clk 0:00:29.8]} 34. bxc6 {[%clk 0:01:14.2]}
34... Be5 {[%clk 0:00:28.5]} 35. Nb5 {[%clk 0:01:12.8]} 35... Kf8 {[%clk
0:00:28.8]} 36. Kf1 {[%clk 0:01:13.3]} 36... Ke7 {[%clk 0:00:28.6]} 37. Ke2
{[%clk 0:01:13]} 37... Kd8 {[%clk 0:00:24]} 38. f4 {[%clk 0:01:10.2]} 38... Bb8
{[%clk 0:00:21]} 39. f5 {[%clk 0:01:11.1]} 39... Nc8 {[%clk 0:00:14.6]} 40. fxe6
{[%clk 0:01:10]} 40... fxe6 {[%clk 0:00:15.3]} 41. Nd4 {[%clk 0:01:10.5]} 41...
Ke7 {[%clk 0:00:11.5]} 42. Nxe6 {[%clk 0:01:11]} 42... Kxe6 {[%clk 0:00:10.2]}
43. Bh3+ {[%clk 0:01:11.4]} 43... Kd6 {[%clk 0:00:10.9]} 44. Bxc8 {[%clk
0:01:12.3]} 44... Kxc6 {[%clk 0:00:11.6]} 45. Kd3 {[%clk 0:01:12.7]} 45... Kd6
{[%clk 0:00:12]} 46. Bf5 {[%clk 0:01:13]} 46... h6 {[%clk 0:00:12.3]} 47. h4
{[%clk 0:01:10.1]} 47... Ke5 {[%clk 0:00:12.6]} 48. g4 {[%clk 0:01:10.4]} 48...
Ba7 {[%clk 0:00:10.5]} 49. h5 {[%clk 0:01:10.8]} 49... Kf4 {[%clk 0:00:09.8]}
50. Be6 {[%clk 0:01:10.8]} 50... d4 {[%clk 0:00:10.3]} 51. Bf5 {[%clk
0:01:11.1]} 51... Ke5 {[%clk 0:00:10.7]} 52. Bc8 {[%clk 0:01:10.3]} 52... Bb6
{[%clk 0:00:10.7]} 53. Bf5 {[%clk 0:01:10.1]} 53... Ba7 {[%clk 0:00:09.6]} 54.
Bc8 {[%clk 0:01:10]} 54... Bb6 {[%clk 0:00:10.3]} 55. Bf5 {[%clk 0:01:10]} 55...
Ba7 {[%clk 0:00:11]} 1/2-1/2

[Event "Early-Titled-Tuesday-Blitz-October-03-2023"]
[Site "Chess.com"]
[Date "2023.10.03"]
[Round "11"]
[White "Anton_Demchenko"]
[Black "tetrix83"]
[Result "1-0"]
[WhiteElo "2926"]
[BlackElo "2650"]
[TimeControl "180+1"]
[EndTime "10:07:19 PDT"]
[Termination "Anton_Demchenko won by resignation"]

1. e4 {[%clk 0:03:00.9]} 1... c5 {[%clk 0:02:59.7]} 2. Nf3 {[%clk 0:02:59.6]}
2... d6 {[%clk 0:02:59.8]} 3. d4 {[%clk 0:02:59.3]} 3... cxd4 {[%clk 0:03:00.1]}
4. Nxd4 {[%clk 0:03:00.1]} 4... Nf6 {[%clk 0:03:00.4]} 5. Nc3 {[%clk 0:02:54.4]}
5... a6 {[%clk 0:03:00.7]} 6. Bd3 {[%clk 0:02:53.9]} 6... e6 {[%clk 0:02:54.6]}
7. f4 {[%clk 0:02:50.3]} 7... Nbd7 {[%clk 0:02:54.6]} 8. O-O {[%clk 0:02:46.4]}
8... Qc7 {[%clk 0:02:51]} 9. Kh1 {[%clk 0:02:39.1]} 9... Be7 {[%clk 0:02:48.4]}
10. a4 {[%clk 0:02:35.3]} 10... b6 {[%clk 0:02:48]} 11. Qf3 {[%clk 0:02:20.2]}
11... Bb7 {[%clk 0:02:46.5]} 12. Bd2 {[%clk 0:02:12]} 12... Nc5 {[%clk
0:02:40.2]} 13. Rae1 {[%clk 0:02:10.4]} 13... O-O {[%clk 0:02:22.5]} 14. Qg3
{[%clk 0:02:04.7]} 14... Nxd3 {[%clk 0:02:18.6]} 15. cxd3 {[%clk 0:02:04.4]}
15... Kh8 {[%clk 0:02:17.2]} 16. Qh3 {[%clk 0:01:46.1]} 16... Qc5 {[%clk
0:01:56.5]} 17. Be3 {[%clk 0:01:43.8]} 17... Qh5 {[%clk 0:01:51.6]} 18. Qxh5
{[%clk 0:01:43]} 18... Nxh5 {[%clk 0:01:51.4]} 19. Nb3 {[%clk 0:01:40.3]} 19...
Bd8 {[%clk 0:01:49]} 20. Nd2 {[%clk 0:01:40.4]} 20... Nf6 {[%clk 0:01:24.2]} 21.
Nc4 {[%clk 0:01:26.4]} 21... b5 {[%clk 0:01:14.9]} 22. Nxd6 {[%clk 0:01:24.2]}
22... Bc6 {[%clk 0:01:12.4]} 23. axb5 {[%clk 0:01:23.3]} 23... axb5 {[%clk
0:01:12.8]} 24. Ndxb5 {[%clk 0:01:24.1]} 24... Rb8 {[%clk 0:01:12.1]} 25. Nd4
{[%clk 0:01:20.6]} 25... Bd7 {[%clk 0:01:09.2]} 26. Rb1 {[%clk 0:01:18.8]} 26...
Ba5 {[%clk 0:01:08.2]} 27. Nf3 {[%clk 0:01:12.6]} 27... Rfc8 {[%clk 0:01:06]}
28. Bd4 {[%clk 0:01:10.6]} 28... Rb4 {[%clk 0:00:45.6]} 29. Ra1 {[%clk
0:01:09.5]} 29... Bd8 {[%clk 0:00:39.7]} 30. Ra7 {[%clk 0:01:07.3]} 30... Be8
{[%clk 0:00:39.4]} 31. Rfa1 {[%clk 0:00:37.2]} 31... Kg8 {[%clk 0:00:34.8]} 32.
Ra8 {[%clk 0:00:32.5]} 32... Rcb8 {[%clk 0:00:33.4]} 33. Be5 {[%clk 0:00:30.4]}
33... Rxa8 {[%clk 0:00:07.8]} 34. Rxa8 {[%clk 0:00:31.3]} 1-0

[Event "Early-Titled-Tuesday-Blitz-October-03-2023"]
[Site "Chess.com"]
[Date "2023.10.03"]
[Round "11"]
[White "Dr_crypt"]
[Black "JosefineHeinemann"]
[Result "0-1"]
[WhiteElo "2440"]
[BlackElo "2523"]
[TimeControl "180+1"]
[EndTime "10:07:25 PDT"]
[Termination "JosefineHeinemann won on time"]

1. Nf3 {[%clk 0:02:59.7]} 1... d5 {[%clk 0:02:59.2]} 2. c4 {[%clk 0:02:57]} 2...
e6 {[%clk 0:02:55.6]} 3. d4 {[%clk 0:02:51.7]} 3... Nf6 {[%clk 0:02:54.7]} 4.
Nc3 {[%clk 0:02:51.7]} 4... c5 {[%clk 0:02:53.1]} 5. cxd5 {[%clk 0:02:50]} 5...
Nxd5 {[%clk 0:02:53.3]} 6. e4 {[%clk 0:02:49.8]} 6... Nxc3 {[%clk 0:02:53.2]} 7.
bxc3 {[%clk 0:02:50.7]} 7... cxd4 {[%clk 0:02:54.1]} 8. cxd4 {[%clk 0:02:50.9]}
8... Bb4+ {[%clk 0:02:54.8]} 9. Bd2 {[%clk 0:02:51]} 9... Bxd2+ {[%clk
0:02:55.4]} 10. Qxd2 {[%clk 0:02:51.7]} 10... O-O {[%clk 0:02:55]} 11. Bd3
{[%clk 0:02:51.3]} 11... Bd7 {[%clk 0:02:51.6]} 12. O-O {[%clk 0:02:51.3]} 12...
Bc6 {[%clk 0:02:47.3]} 13. Qf4 {[%clk 0:02:38.7]} 13... Nd7 {[%clk 0:02:45.6]}
14. d5 {[%clk 0:02:36.4]} 14... exd5 {[%clk 0:02:41.5]} 15. exd5 {[%clk
0:02:36]} 15... Bxd5 {[%clk 0:02:42.1]} 16. Rad1 {[%clk 0:02:05.3]} 16... Qf6
{[%clk 0:02:34.4]} 17. Qc7 {[%clk 0:01:58.5]} 17... Bxf3 {[%clk 0:02:26.1]} 18.
gxf3 {[%clk 0:01:45.5]} 18... Ne5 {[%clk 0:02:25.8]} 19. Be4 {[%clk 0:01:40]}
19... Rac8 {[%clk 0:02:22.9]} 20. Qxb7 {[%clk 0:01:40.1]} 20... Rc3 {[%clk
0:02:22.5]} 21. Kg2 {[%clk 0:01:13.7]} 21... h5 {[%clk 0:02:10.9]} 22. Rfe1
{[%clk 0:00:41.1]} 22... h4 {[%clk 0:01:58.8]} 23. h3 {[%clk 0:00:36.7]} 23...
g6 {[%clk 0:01:53.4]} 24. Qb2 {[%clk 0:00:22.5]} 24... Nxf3 {[%clk 0:01:37.3]}
25. Re3 {[%clk 0:00:22.5]} 25... Qg5+ {[%clk 0:01:36.5]} 26. Kxf3 {[%clk
0:00:22.9]} 26... Rxe3+ {[%clk 0:01:31.6]} 27. fxe3 {[%clk 0:00:23.8]} 27... Re8
{[%clk 0:01:26.8]} 28. Qd4 {[%clk 0:00:15.6]} 28... Qg3+ {[%clk 0:01:13.3]} 29.
Ke2 {[%clk 0:00:15.7]} 29... Qxh3 {[%clk 0:01:14]} 30. Qd5 {[%clk 0:00:12.6]}
30... Qg3 {[%clk 0:01:01.8]} 31. Rf1 {[%clk 0:00:11.4]} 31... Qg4+ {[%clk
0:00:52.6]} 32. Kd3 {[%clk 0:00:07.2]} 32... Rf8 {[%clk 0:00:46.1]} 33. Rf2
{[%clk 0:00:04.6]} 33... h3 {[%clk 0:00:45.2]} 34. Qd6 {[%clk 0:00:02.4]} 34...
Qh4 {[%clk 0:00:39.1]} 0-1

[Event "Early-Titled-Tuesday-Blitz-October-03-2023"]
[Site "Chess.com"]
[Date "2023.10.03"]
[Round "11"]
[White "N4700000"]
[Black "HanSchut"]
[Result "0-1"]
[WhiteElo "2379"]
[BlackElo "2322"]
[TimeControl "180+1"]
[EndTime "10:07:33 PDT"]
[Termination "HanSchut won on time"]

1. e4 {[%clk 0:03:00.9]} 1... c5 {[%clk 0:02:59.7]} 2. Nf3 {[%clk 0:02:59.7]}
2... d6 {[%clk 0:03:00.1]} 3. Bb5+ {[%clk 0:02:58.7]} 3... Bd7 {[%clk
0:02:59.6]} 4. c4 {[%clk 0:02:57.4]} 4... g6 {[%clk 0:02:58.9]} 5. O-O {[%clk
0:02:55.3]} 5... Bg7 {[%clk 0:02:59.5]} 6. d4 {[%clk 0:02:52.6]} 6... cxd4
{[%clk 0:02:59.6]} 7. Nxd4 {[%clk 0:02:53.5]} 7... Nf6 {[%clk 0:02:59.6]} 8. Nc3
{[%clk 0:02:53.8]} 8... O-O {[%clk 0:02:59.3]} 9. h3 {[%clk 0:02:48]} 9... a6
{[%clk 0:02:55.9]} 10. Bxd7 {[%clk 0:02:46.2]} 10... Qxd7 {[%clk 0:02:56.8]} 11.
Be3 {[%clk 0:02:41]} 11... Rc8 {[%clk 0:02:56.2]} 12. b3 {[%clk 0:02:16.7]}
12... b5 {[%clk 0:02:52.6]} 13. Nd5 {[%clk 0:02:16.4]} 13... Nxd5 {[%clk
0:02:24.1]} 14. cxd5 {[%clk 0:02:17.3]} 14... Qb7 {[%clk 0:02:09.3]} 15. Rc1
{[%clk 0:02:11.8]} 15... Nd7 {[%clk 0:02:08]} 16. f4 {[%clk 0:01:47]} 16... Nc5
{[%clk 0:01:47.6]} 17. Qf3 {[%clk 0:01:36.5]} 17... Nd3 {[%clk 0:01:36.5]} 18.
Rxc8+ {[%clk 0:01:33.7]} 18... Rxc8 {[%clk 0:01:37.4]} 19. Nc6 {[%clk
0:01:28.4]} 19... e6 {[%clk 0:01:11]} 20. Rd1 {[%clk 0:01:10.1]} 20... exd5
{[%clk 0:01:04.8]} 21. exd5 {[%clk 0:01:08.4]} 21... Nc5 {[%clk 0:00:53.1]} 22.
Bxc5 {[%clk 0:00:32.2]} 22... dxc5 {[%clk 0:00:54]} 23. Qe4 {[%clk 0:00:28.9]}
23... Kh8 {[%clk 0:00:46.1]} 24. d6 {[%clk 0:00:16.3]} 24... Qd7 {[%clk
0:00:44.8]} 25. Ne5 {[%clk 0:00:14]} 25... Bxe5 {[%clk 0:00:39.8]} 26. fxe5
{[%clk 0:00:14.1]} 26... Re8 {[%clk 0:00:39.3]} 27. Qd5 {[%clk 0:00:13.9]} 27...
c4 {[%clk 0:00:36.2]} 28. bxc4 {[%clk 0:00:13.3]} 28... bxc4 {[%clk 0:00:37.1]}
29. Qxc4 {[%clk 0:00:13.2]} 29... Rxe5 {[%clk 0:00:36.6]} 30. Qc7 {[%clk
0:00:11.5]} 30... Qa4 {[%clk 0:00:33.8]} 31. Rc1 {[%clk 0:00:07.4]} 31... Rd5
{[%clk 0:00:29.8]} 32. Qc8+ {[%clk 0:00:05]} 32... Kg7 {[%clk 0:00:29.5]} 33.
Qc3+ {[%clk 0:00:05.2]} 33... Qd4+ {[%clk 0:00:28.4]} 34. Qxd4+ {[%clk
0:00:03.3]} 34... Rxd4 {[%clk 0:00:29.3]} 35. Rc6 {[%clk 0:00:02.9]} 35... a5
{[%clk 0:00:29.2]} 36. Ra6 {[%clk 0:00:02.8]} 36... a4 {[%clk 0:00:28.6]} 37. d7
{[%clk 0:00:02.4]} 37... Rxd7 {[%clk 0:00:28.3]} 38. Rxa4 {[%clk 0:00:02.4]}
38... Rc7 {[%clk 0:00:27.5]} 39. Ra6 {[%clk 0:00:02.4]} 39... Rc2 {[%clk
0:00:26.3]} 0-1

[Event "Early-Titled-Tuesday-Blitz-October-03-2023"]
[Site "Chess.com"]
[Date "2023.10.03"]
[Round "11"]
[White "Zavgorodniy_Sergiy"]
[Black "Zablotsky"]
[Result "1-0"]
[WhiteElo "2643"]
[BlackElo "2732"]
[TimeControl "180+1"]
[EndTime "10:07:36 PDT"]
[Termination "Zavgorodniy_Sergiy won by resignation"]

1. e4 {[%clk 0:03:00.9]} 1... d6 {[%clk 0:02:59.7]} 2. d4 {[%clk 0:03:00.3]}
2... Nf6 {[%clk 0:03:00.4]} 3. Nc3 {[%clk 0:03:00.2]} 3... e5 {[%clk 0:03:01.3]}
4. Nge2 {[%clk 0:02:59.4]} 4... c6 {[%clk 0:02:57.5]} 5. h3 {[%clk 0:02:57.4]}
5... b5 {[%clk 0:02:46.6]} 6. a3 {[%clk 0:02:56.7]} 6... h5 {[%clk 0:02:20.3]}
7. g3 {[%clk 0:02:55]} 7... a5 {[%clk 0:02:16.6]} 8. Bg2 {[%clk 0:02:54.7]} 8...
Ba6 {[%clk 0:02:16.9]} 9. dxe5 {[%clk 0:02:45.9]} 9... dxe5 {[%clk 0:02:17.8]}
10. Qxd8+ {[%clk 0:02:45.6]} 10... Kxd8 {[%clk 0:02:18.7]} 11. Bg5 {[%clk
0:02:45.6]} 11... Nd7 {[%clk 0:02:17.8]} 12. f4 {[%clk 0:02:41.3]} 12... Bd6
{[%clk 0:02:11.3]} 13. fxe5 {[%clk 0:02:31.9]} 13... Bxe5 {[%clk 0:02:10.4]} 14.
O-O-O {[%clk 0:02:09.7]} 14... Kc7 {[%clk 0:02:09.9]} 15. Nf4 {[%clk 0:01:54.8]}
15... b4 {[%clk 0:02:08]} 16. axb4 {[%clk 0:01:29.7]} 16... axb4 {[%clk
0:02:08.9]} 17. Nb1 {[%clk 0:01:30.2]} 17... Bb5 {[%clk 0:01:59.3]} 18. Nd3
{[%clk 0:01:21.5]} 18... Rhb8 {[%clk 0:01:59.2]} 19. Nxe5 {[%clk 0:01:20.5]}
19... Nxe5 {[%clk 0:01:58.7]} 20. Bf4 {[%clk 0:01:18.9]} 20... Re8 {[%clk
0:01:58.3]} 21. g4 {[%clk 0:01:13.6]} 21... hxg4 {[%clk 0:01:57]} 22. hxg4
{[%clk 0:01:14.5]} 22... Nxg4 {[%clk 0:01:56.1]} 23. Rh7 {[%clk 0:01:14.3]}
23... b3 {[%clk 0:01:32.9]} 24. Rxg7 {[%clk 0:01:04.2]} 24... bxc2 {[%clk
0:01:32.3]} 25. Kxc2 {[%clk 0:01:04.7]} 25... Kb6 {[%clk 0:01:13.4]} 26. Nc3
{[%clk 0:01:00.3]} 26... Nf2 {[%clk 0:01:08.6]} 27. Nxb5 {[%clk 0:00:44.1]}
27... Nxd1 {[%clk 0:00:53.7]} 28. Nd6 {[%clk 0:00:42.8]} 28... Re6 {[%clk
0:00:48.4]} 29. Bxe5 {[%clk 0:00:41.5]} 29... Ne3+ {[%clk 0:00:48.3]} 30. Kd3
{[%clk 0:00:37.5]} 30... Nxg2 {[%clk 0:00:44.4]} 31. Nc4+ {[%clk 0:00:37.4]}
31... Kb5 {[%clk 0:00:42.5]} 32. Rxg2 {[%clk 0:00:36.9]} 32... Kb4 {[%clk
0:00:36.3]} 33. Bc3+ {[%clk 0:00:34]} 33... Kb3 {[%clk 0:00:35.7]} 34. Nd2+
{[%clk 0:00:32.9]} 34... Ka2 {[%clk 0:00:35.7]} 35. e5 {[%clk 0:00:32.5]} 35...
Rd8+ {[%clk 0:00:26.9]} 36. Kc4 {[%clk 0:00:32.5]} 36... Rd5 {[%clk 0:00:18.5]}
37. Rg8 {[%clk 0:00:31]} 37... Rxd2 {[%clk 0:00:18.2]} 38. Bxd2 {[%clk
0:00:30.1]} 38... Kxb2 {[%clk 0:00:18.9]} 39. Bc3+ {[%clk 0:00:25.9]} 39... Kc2
{[%clk 0:00:19.3]} 40. Rg2+ {[%clk 0:00:25.3]} 40... Kd1 {[%clk 0:00:18.2]} 41.
Kd3 {[%clk 0:00:25.2]} 1-0

[Event "Early-Titled-Tuesday-Blitz-October-03-2023"]
[Site "Chess.com"]
[Date "2023.10.03"]
[Round "11"]
[White "ozates"]
[Black "vladoboch"]
[Result "1-0"]
[WhiteElo "2632"]
[BlackElo "2431"]
[TimeControl "180+1"]
[EndTime "10:07:36 PDT"]
[Termination "ozates won by resignation"]

1. g3 {[%clk 0:03:00.9]} 1... d5 {[%clk 0:02:58.1]} 2. Bg2 {[%clk 0:03:01]} 2...
c6 {[%clk 0:02:56.1]} 3. c4 {[%clk 0:02:58]} 3... Nf6 {[%clk 0:02:55.5]} 4. Qc2
{[%clk 0:02:57.5]} 4... Bg4 {[%clk 0:02:44.2]} 5. Nf3 {[%clk 0:02:56.8]} 5... e6
{[%clk 0:02:42.8]} 6. O-O {[%clk 0:02:57]} 6... Be7 {[%clk 0:02:41.1]} 7. b3
{[%clk 0:02:56.6]} 7... O-O {[%clk 0:02:39.7]} 8. Bb2 {[%clk 0:02:56.8]} 8...
Nbd7 {[%clk 0:02:40.3]} 9. d3 {[%clk 0:02:56.4]} 9... a5 {[%clk 0:02:39.3]} 10.
a3 {[%clk 0:02:54.3]} 10... Rc8 {[%clk 0:02:38.7]} 11. Nbd2 {[%clk 0:02:53.4]}
11... b5 {[%clk 0:02:38.6]} 12. Rfe1 {[%clk 0:02:52.7]} 12... Qb6 {[%clk
0:02:36]} 13. e4 {[%clk 0:02:31.2]} 13... dxe4 {[%clk 0:02:11.4]} 14. Nxe4
{[%clk 0:02:30.9]} 14... Nxe4 {[%clk 0:02:11.6]} 15. dxe4 {[%clk 0:02:30.9]}
15... Bc5 {[%clk 0:02:11.6]} 16. Rad1 {[%clk 0:02:27.2]} 16... Rfd8 {[%clk
0:02:06.3]} 17. Rd2 {[%clk 0:01:52.1]} 17... Nf8 {[%clk 0:01:50.8]} 18. Ne5
{[%clk 0:01:43.6]} 18... Bh5 {[%clk 0:01:46.4]} 19. g4 {[%clk 0:01:36.8]} 19...
Bg6 {[%clk 0:01:46.5]} 20. h4 {[%clk 0:01:37.3]} 20... h5 {[%clk 0:01:40.8]} 21.
g5 {[%clk 0:01:35]} 21... Bd4 {[%clk 0:01:24.3]} 22. Rxd4 {[%clk 0:01:27]} 22...
Rxd4 {[%clk 0:01:24]} 23. c5 {[%clk 0:01:27.3]} 23... Qd8 {[%clk 0:01:21.2]} 24.
Qc3 {[%clk 0:01:23.4]} 24... Rd1 {[%clk 0:01:08.4]} 25. Rxd1 {[%clk 0:00:51.3]}
25... Qxd1+ {[%clk 0:01:06.8]} 26. Kh2 {[%clk 0:00:51.7]} 26... b4 {[%clk
0:01:01.2]} 27. axb4 {[%clk 0:00:50.1]} 27... axb4 {[%clk 0:01:02.1]} 28. Qxb4
{[%clk 0:00:46.2]} 28... Nd7 {[%clk 0:00:48.6]} 29. Qc3 {[%clk 0:00:33]} 29...
Nxe5 {[%clk 0:00:26.7]} 30. Qxe5 {[%clk 0:00:31.6]} 30... Kf8 {[%clk 0:00:27.6]}
31. Qxg7+ {[%clk 0:00:29.3]} 31... Ke8 {[%clk 0:00:27]} 32. Be5 {[%clk 0:00:20]}
32... Kd7 {[%clk 0:00:16.8]} 33. Qf6 {[%clk 0:00:17.3]} 33... Qg4 {[%clk
0:00:14.9]} 34. Bg3 {[%clk 0:00:16.6]} 34... Ra8 {[%clk 0:00:06.2]} 35. Qd4+
{[%clk 0:00:16]} 35... Ke8 {[%clk 0:00:06.3]} 36. Qh8+ {[%clk 0:00:15.2]} 1-0

[Event "Early-Titled-Tuesday-Blitz-October-03-2023"]
[Site "Chess.com"]
[Date "2023.10.03"]
[Round "11"]
[White "Nekoo04"]
[Black "dadice10"]
[Result "1-0"]
[WhiteElo "2293"]
[BlackElo "2157"]
[TimeControl "180+1"]
[EndTime "10:07:38 PDT"]
[Termination "Nekoo04 won on time"]

1. d4 {[%clk 0:02:39.5]} 1... d5 {[%clk 0:02:59.6]} 2. c4 {[%clk 0:02:39.8]}
2... dxc4 {[%clk 0:03:00.5]} 3. Nf3 {[%clk 0:02:39.7]} 3... Nf6 {[%clk
0:02:58.4]} 4. g3 {[%clk 0:02:40.1]} 4... g6 {[%clk 0:02:55.8]} 5. Bg2 {[%clk
0:02:36.2]} 5... Bg7 {[%clk 0:02:56]} 6. O-O {[%clk 0:02:35.4]} 6... O-O {[%clk
0:02:54.8]} 7. Ne5 {[%clk 0:02:35.6]} 7... Nc6 {[%clk 0:02:52.4]} 8. Nxc6 {[%clk
0:02:29.9]} 8... bxc6 {[%clk 0:02:53.3]} 9. e3 {[%clk 0:02:29.1]} 9... Rb8
{[%clk 0:02:48.5]} 10. Qa4 {[%clk 0:02:22.8]} 10... Rb6 {[%clk 0:02:20.6]} 11.
Bxc6 {[%clk 0:02:14.8]} 11... Bh3 {[%clk 0:02:09]} 12. Re1 {[%clk 0:02:08.4]}
12... e5 {[%clk 0:02:05.9]} 13. dxe5 {[%clk 0:02:04.4]} 13... Ng4 {[%clk
0:02:05]} 14. f4 {[%clk 0:01:33.9]} 14... Qd3 {[%clk 0:01:45.9]} 15. Nc3 {[%clk
0:01:30.7]} 15... Rfb8 {[%clk 0:01:19.2]} 16. Be4 {[%clk 0:01:28]} 16... Qd8
{[%clk 0:01:13.7]} 17. Qxc4 {[%clk 0:01:27.2]} 17... Rb4 {[%clk 0:01:10.8]} 18.
Qd5 {[%clk 0:01:26]} 18... Qe8 {[%clk 0:01:03.6]} 19. a3 {[%clk 0:01:18.7]}
19... R4b6 {[%clk 0:01:02.8]} 20. Rd1 {[%clk 0:00:49.9]} 20... Bf6 {[%clk
0:00:53.7]} 21. b4 {[%clk 0:00:16.3]} 21... Rd8 {[%clk 0:00:45.2]} 22. Qb3
{[%clk 0:00:09.3]} 22... Rxd1+ {[%clk 0:00:40.9]} 23. Qxd1 {[%clk 0:00:10.2]}
23... Nxe5 {[%clk 0:00:37.5]} 24. Nd5 {[%clk 0:00:07.3]} 24... Nc4 {[%clk
0:00:18.8]} 25. Nxf6+ {[%clk 0:00:05.6]} 25... Rxf6 {[%clk 0:00:16.7]} 26. Qd4
{[%clk 0:00:05.6]} 26... Rd6 {[%clk 0:00:04.6]} 27. Qxc4 {[%clk 0:00:03.6]}
27... Rd1+ {[%clk 0:00:04.3]} 28. Kf2 {[%clk 0:00:04]} 28... Rf1+ {[%clk
0:00:03]} 29. Ke2 {[%clk 0:00:03.3]} 29... Be6 {[%clk 0:00:01.3]} 30. Bd5 {[%clk
0:00:02]} 1-0

[Event "Early-Titled-Tuesday-Blitz-October-03-2023"]
[Site "Chess.com"]
[Date "2023.10.03"]
[Round "11"]
[White "ChainedDowntohell"]
[Black "Herzog2012"]
[Result "1-0"]
[WhiteElo "2430"]
[BlackElo "2490"]
[TimeControl "180+1"]
[EndTime "10:07:40 PDT"]
[Termination "ChainedDowntohell won by checkmate"]

1. d4 {[%clk 0:03:00.9]} 1... Nf6 {[%clk 0:02:59.4]} 2. c4 {[%clk 0:03:00.4]}
2... e6 {[%clk 0:02:58.7]} 3. Nc3 {[%clk 0:02:58.8]} 3... Bb4 {[%clk 0:02:57.4]}
4. Bd2 {[%clk 0:02:58.1]} 4... b6 {[%clk 0:02:53.1]} 5. e3 {[%clk 0:02:54.8]}
5... Bb7 {[%clk 0:02:52.7]} 6. Nge2 {[%clk 0:02:54.9]} 6... O-O {[%clk
0:02:52.4]} 7. a3 {[%clk 0:02:53.6]} 7... Be7 {[%clk 0:02:51.5]} 8. Nf4 {[%clk
0:02:48.5]} 8... d5 {[%clk 0:02:50.5]} 9. cxd5 {[%clk 0:02:30.7]} 9... exd5
{[%clk 0:02:51.4]} 10. Bd3 {[%clk 0:02:19.6]} 10... c5 {[%clk 0:02:50.5]} 11.
O-O {[%clk 0:02:16.9]} 11... cxd4 {[%clk 0:02:46.4]} 12. exd4 {[%clk 0:02:16.3]}
12... Nc6 {[%clk 0:02:47]} 13. Be3 {[%clk 0:02:10.4]} 13... Re8 {[%clk
0:02:43.6]} 14. Qf3 {[%clk 0:02:09.4]} 14... Qd7 {[%clk 0:02:09.2]} 15. Rad1
{[%clk 0:02:04.1]} 15... Rad8 {[%clk 0:02:08.3]} 16. h3 {[%clk 0:02:02.8]} 16...
Bf8 {[%clk 0:01:54.3]} 17. Rfe1 {[%clk 0:01:55.5]} 17... Na5 {[%clk 0:01:53]}
18. Bb5 {[%clk 0:01:49.2]} 18... Bc6 {[%clk 0:01:51.6]} 19. Bxc6 {[%clk
0:01:41]} 19... Qxc6 {[%clk 0:01:50.8]} 20. Nd3 {[%clk 0:01:34.7]} 20... Ne4
{[%clk 0:01:44.6]} 21. Ne5 {[%clk 0:01:33.3]} 21... Qb7 {[%clk 0:01:37.9]} 22.
Rc1 {[%clk 0:01:11]} 22... f6 {[%clk 0:01:16.7]} 23. Nd3 {[%clk 0:01:06.4]}
23... Nb3 {[%clk 0:01:11]} 24. Rc2 {[%clk 0:01:04.1]} 24... Qa6 {[%clk
0:01:02.1]} 25. Rd1 {[%clk 0:01:01.7]} 25... Nxc3 {[%clk 0:00:53.9]} 26. Rxc3
{[%clk 0:00:59.8]} 26... Na5 {[%clk 0:00:48.7]} 27. Nf4 {[%clk 0:00:56.3]} 27...
Nc4 {[%clk 0:00:46.9]} 28. Nxd5 {[%clk 0:00:50.2]} 28... Nxb2 {[%clk 0:00:44.3]}
29. Rdc1 {[%clk 0:00:41.7]} 29... Na4 {[%clk 0:00:13.4]} 30. Rc7 {[%clk
0:00:37.1]} 30... Rc8 {[%clk 0:00:10]} 31. Nxf6+ {[%clk 0:00:31.7]} 31... gxf6
{[%clk 0:00:09.3]} 32. Rxc8 {[%clk 0:00:21.8]} 32... Rxc8 {[%clk 0:00:08.4]} 33.
Qg4+ {[%clk 0:00:21.5]} 33... Kf7 {[%clk 0:00:06.7]} 34. Rxc8 {[%clk 0:00:19]}
34... Qb7 {[%clk 0:00:04.6]} 35. Bf4 {[%clk 0:00:15.2]} 35... Be7 {[%clk
0:00:03.2]} 36. Qg8# {[%clk 0:00:14.1]} 1-0